Cogmind - Beta 16.1 @@@ ROGUE MODE // 2026.04.28 @ 15:58:34 Player: ChromeKnight Result: Destroyed by V811-w with Enhanced Quantum Rifle Performance ------------- Evolutions (8) 4000 Regions Visited (21) 4200 Robots Destroyed (232) 1160 Value Destroyed (13005) 13005 Prototype IDs (60) 1200 Alien Tech Used (2) 400 Bonus (7397) 7397 TOTAL SCORE: 31362 Bonus ------- High Alert Combat Kills 338 Follower Combat Kills 2412 Network Hubs Disabled 200 Registered with UFD 300 Met Optimus in HQ 500 Met Data Miner 300 Built Enhanced Grunts 300 Met R17 at Cetus 500 Hacked Protovariant 500 Met R17 at Research 2000 Scanned by Researcher 500 Friendly Fire -453 Cogmind --------- Core Integrity 0/1450 Matter 124/300 Energy 7/240 System Corruption 16% Temperature Cool (22) Movement Walking (120) Location -2/Protoforge Parts ------- > --- POWER (2) -------- Micro Antimatter Reactor Light Quantum Reactor > --- PROPULSION (6) --- Centrium Leg Centrium Leg Centrium Leg High-density Centrium Leg > --- UTILITY (12) ----- Advanced Cooling System Experimental Cooling System Advanced Coolant Injector High-capacity Storage Unit Advanced Melee Analysis Suite Experimental Core Analyzer Experimental Armor Integrity Analyzer Advanced Particle Charger Quantum Capacitor Experimental Thermal Shield > --- WEAPON (3) ------- Null Cannon Experimental Jetlance > --- INVENTORY (20) --- Advanced Cryofiber Web Experimental Heat Sink Experimental Active Sensor Suite Graphene Brace Hacking Suite Warp Gun Compact HERF Cannon Enhanced Nova Cannon Null Cannon Core Cannon Nanosword Nanosword Nanosword Peak State ------------ > --- POWER ------------ Particle Reactor Light Quantum Reactor > --- PROPULSION ------- Biometal Leg Biometal Leg Centrium Leg Centrium Leg Centrium Leg High-density Centrium Leg > --- UTILITY ---------- High-capacity Storage Unit Experimental Core Analyzer Experimental Armor Integrity Analyzer Nanoactuators Advanced Actuator Array Advanced Transmission Jammer Improved Weapon Shielding Centrium Heavy Armor Plating Graphene Brace Experimental Thermal Shield Experimental Force Field > --- WEAPON ----------- Null Cannon Nanosword Nanosword > --- INVENTORY -------- Light Quantum Reactor Light Quantum Reactor Enhanced Flexi-carbon Leg Centrium Leg Centrium Leg Advanced Cooling System Experimental Cooling System Advanced Coolant Injector Advanced Particle Charger Quantum Capacitor Hacking Suite Warp Gun Compact HERF Cannon Enhanced Nova Cannon Null Cannon Core Cannon Graviton Cannon Nanosword [Rating: 207] Favorites ----------- Power Quantum Reactor Engine Ion Engine Power Core Micro Nuclear Core Reactor Quantum Reactor Propulsion Armored Leg Treads Light Treads Leg Armored Leg Wheel Wheel Utility High-capacity Storage Unit Device Advanced Sensor Array Storage High-capacity Storage Unit Processor Advanced Signal Interpreter Hackware Improved System Shield Protection Centrium Light Armor Plating Weapon Power Sword Energy Gun Warp Gun Energy Cannon Null Cannon Ballistic Gun Light Assault Rifle Ballistic Cannon Tri-rail Accelerator Launcher Rocket Launcher Special Weapon Multitool Impact Weapon Power Maul Slashing Weapon Power Sword Piercing Weapon Plasma Lance Build | -11 -10 -10 -10 -8 -8 -6 -6 -6 -6 -5 -5 -4 -4 -4 -4 -4 -3 -3 -2 -2 -2 ------- Run | Yrd Mat Min Sub Rec Scr Fac Low Low Dat Pro Fac Fac Ext Cet Arc Hub Res Qua Res Tes Frg Slots Evolved 16 | . . . . . . 8 . . . . 2 2 . . . . 2 . 2 . . Power 1 | . . . . . . 1 . . . . . . . . . . . . . . . Propulsion 4 | . . . . . . 3 . . . . . . . . . . 1 . . . . Utility 10 | . . . . . . 3 . . . . 2 2 . . . . 1 . 2 . . Weapon 1 | . . . . . . 1 . . . . . . . . . . . . . . . Parts Attached 239 | 6 7 4 . 4 7 33 5 3 . 8 16 8 7 3 . 12 30 19 24 25 18 Power 35 | 1 3 . . . 1 6 . 1 . . 2 1 2 1 . 1 2 4 6 . 4 Engine 6 | 1 3 . . . . 1 . 1 . . . . . . . . . . . . . Core 11 | . . . . . 1 5 . . . . 2 1 2 . . . . . . . . Reactor 18 | . . . . . . . . . . . . . . 1 . 1 2 4 6 . 4 Propulsion 63 | 2 1 2 . 1 . 9 . 1 . 1 5 1 1 . . 7 11 7 8 4 2 Treads 2 | 2 . . . . . . . . . . . . . . . . . . . . . Leg 58 | . . . . 1 . 9 . 1 . 1 5 1 1 . . 7 11 7 8 4 2 Wheel 3 | . 1 2 . . . . . . . . . . . . . . . . . . . Hover . | . . . . . . . . . . . . . . . . . . . . . . Flight . | . . . . . . . . . . . . . . . . . . . . . . Utility 88 | 1 1 . . . 4 12 5 1 . 2 6 4 3 2 . 2 14 5 7 13 6 Device 31 | . . . . . 1 3 1 1 . 1 1 3 1 . . 1 2 3 4 5 4 Storage 5 | 1 1 . . . 1 1 . . . . . 1 . . . . . . . . . Processor 17 | . . . . . 1 4 2 . . . . . . . . . 4 . 2 2 2 Hackware 8 | . . . . . . 2 . . . . 2 . 1 . . 1 2 . . . . Protection 27 | . . . . . 1 2 2 . . 1 3 . 1 2 . . 6 2 1 6 . Artifact . | . . . . . . . . . . . . . . . . . . . . . . Weapon 53 | 2 2 2 . 3 2 6 . . . 5 3 2 1 . . 2 3 3 3 8 6 Energy Gun 1 | . . . . . . . . . . . . . . . . . . . . 1 . Energy Cannon 7 | . . . . . . . . . . . . . 1 . . . 1 . 2 3 . Ballistic Gun 7 | 2 2 1 . 2 . . . . . . . . . . . . . . . . . Ballistic Cannon 5 | . . . . . 1 . . . . . 1 . . . . 1 . 1 . 1 . Launcher 9 | . . 1 . . . . . . . 4 . . . . . . . 1 . . 3 Special Weapon 2 | . . . . 1 . . . . . . . . . . . 1 . . . . . Impact Weapon 1 | . . . . . . 1 . . . . . . . . . . . . . . . Slashing Weapon 14 | . . . . . 1 4 . . . 1 2 1 . . . . . . . 3 2 Piercing Weapon 7 | . . . . . . 1 . . . . . 1 . . . . 2 1 1 . 1 Special Melee Weapon . | . . . . . . . . . . . . . . . . . . . . . . Unidentified Prototypes 43 | . . . . 1 . 1 1 . . 4 2 . . 1 . 1 7 5 . 12 8 Corrupted Parts 2 | . . . . . . . . . . . . . . . . 2 . . . . . System Corruption 21 | . . . . . . . . . . . . . . . . 21 . . . . . Parts Lost 64 | . 3 . . 1 . 6 . . . 3 5 1 2 1 . 1 7 5 9 4 16 Power 12 | . 1 . . . . 2 . . . 1 . . 2 . . . 1 2 1 . 2 Propulsion 20 | . 2 . . . . 2 . . . 1 2 1 . . . . 1 . 5 . 6 Utility 25 | . . . . . . 2 . . . 1 2 . . 1 . . 5 3 2 4 5 Weapon 7 | . . . . 1 . . . . . . 1 . . . . 1 . . 1 . 3 Highest Loss Streak 7 | . 2 . . 1 . 2 . . . 2 5 1 1 1 . 1 7 2 4 2 6 To Critical Strikes . | . . . . . . . . . . . . . . . . . . . . . . Average Backups 15 | . 1 7 9 10 13 13 16 16 17 16 16 17 17 18 19 19 19 19 17 17 15 Power . | . . . . . 2 1 . . . . . . . . 1 1 1 . 1 3 1 Propulsion 2 | . . 3 3 4 2 3 3 2 2 1 . 1 1 3 3 2 4 6 3 2 1 Utility 7 | . . 2 2 3 3 3 7 8 9 8 7 9 11 12 12 12 12 9 7 7 4 Weapon 3 | . . 1 2 1 3 4 5 5 5 5 6 4 2 2 2 1 1 2 3 4 7 Tool/Special . | . . . . . . . . . . . . . . . . . . . . . . Unused Backups 39 | . . . . . 10 5 1 . . . 2 5 2 . . 2 6 . 1 . 5 Power 3 | . . . . . 1 . 1 . . . . . . . . . . . 1 . . Propulsion 10 | . . . . . 5 1 . . . . . 1 . . . 1 2 . . . . Utility 18 | . . . . . 1 4 . . . . 1 2 2 . . 1 4 . . . 3 Weapon 7 | . . . . . 2 . . . . . 1 2 . . . . . . . . 2 Tool/Special 1 | . . . . . 1 . . . . . . . . . . . . . . . . Average Slot Usage (%) 88 | . 80 71 85 60 65 94 93 93 93 91 93 88 88 88 89 88 91 95 96 95 92 Engine 2 | . 13 14 14 11 5 1 . 5 6 2 . . . . . . . . . . . Core 4 | . . . . . 5 9 13 6 6 6 9 10 9 8 5 5 1 . . . . Reactor 2 | . . . . . . . . . . . . . . 1 5 5 7 8 7 8 7 Leg 22 | . . . . 8 11 25 33 32 33 31 28 25 26 26 26 26 28 23 23 26 25 Wheel 1 | . 4 14 28 7 . . . . . . . . . . . . . . . . . Device 10 | . . . . . 7 13 5 6 6 5 5 14 11 10 10 9 8 14 16 19 26 Storage 6 | . 14 14 14 11 11 5 6 6 6 6 5 5 5 5 5 5 4 4 4 4 4 Processor 7 | . . . . . 1 10 12 13 13 13 8 5 5 5 5 5 5 9 11 6 8 Hackware 5 | . . . . . . . . . . . 10 10 13 15 15 15 15 9 8 2 . Protection 4 | . . . . . 1 6 . . . 3 5 5 5 4 5 5 8 8 8 14 5 Ballistic Gun 2 | . 27 27 14 19 1 . . . . . . . . . . . . . . . . Ballistic Cannon 1 | . . . . . 10 . . . . . 1 5 3 5 5 4 3 . . . . Slashing Weapon 5 | . . . . . 10 15 13 13 13 12 9 4 . . . . . . . 5 8 Piercing Weapon 4 | . . . . . . 2 6 6 6 5 2 . 5 5 5 4 4 13 11 3 1 Peak Build Rating 207 | 6 7 11 13 25 44 80 75 73 65 66 100 117 118 124 124 130 149 157 179 201 207 Average Rating 99 | 4 5 6 11 19 35 72 69 67 65 64 86 112 115 121 124 126 144 151 169 186 196 On Entrance 83 | . 6 5 11 13 22 44 67 69 65 65 66 100 117 116 124 124 130 148 155 179 201 Avg Prop Armor Cover (%) 4 | . 12 . . . . . . . . . . . . . . . . 3 3 . . Naked Turns . | . . . . . . . . . . . . . . . . . . . . . . Heaviest Build 129 | 11 51 51 51 51 76 75 76 89 60 62 106 112 111 117 117 117 125 109 111 128 129 Greatest Support 178 | 40 40 20 20 55 55 108 85 89 84 84 112 117 117 117 117 126 156 156 174 178 178 Greatest Overweight (x) 4 | . 4 4 2 2 1 1 . 1 . . 1 1 . . . . . . . . . Average Overweight (x) . | . 1 3 2 . . . . . . . . . . . . . . . . . . Largest Inventory Capacity 20 | 8 20 20 20 20 20 20 20 20 20 20 20 20 20 20 20 20 20 20 20 20 20 Average Capacity 19 | 6 16 20 20 20 16 17 20 20 20 20 20 20 20 20 20 20 20 20 20 20 20 Most Carried 20 | . 5 15 17 18 20 20 20 20 20 20 20 20 20 20 20 20 20 20 20 20 20 Average Carried 17 | . 1 10 14 14 15 15 19 19 20 19 18 19 19 19 20 19 19 19 18 19 17 Final Capacity 20 | 8 20 20 20 20 15 20 20 20 20 20 20 20 20 20 20 20 20 20 20 20 20 Final Carried 20 | . 5 11 17 14 15 18 20 20 20 18 20 19 20 20 20 20 20 20 20 20 15 Class Distribution -------------------- 28% | Scavenger-Gladiator 21% | Hacker-Mutant 17% | Mutant 14% | Gladiator 11% | Scavenger-Mutant 3% | Hacker-Gladiator Dominant Class ---------------- Mutant | -10/Materials Scavenger-Mutant | -10/Mines Mutant | -10/Subcaves Mutant | -8/Recycling Mutant | -8/Scraptown Scavenger-Gladiator | -6/Factory Gladiator | -6/Lower Caves Scavenger-Gladiator | -6/Lower Caves Gladiator | -6/Data Miner Gladiator | -5/Proximity Caves Hacker-Gladiator | -5/Factory Hacker-Mutant | -4/Factory Hacker-Mutant | -4/Extension Hacker-Mutant | -4/Cetus Hacker-Mutant | -4/Archives Hacker-Mutant | -4/Hub_04(d) Hacker-Mutant | -3/Research Scavenger-Gladiator | -3/Quarantine Scavenger-Gladiator | -2/Research Scavenger-Mutant | -2/Testing Scavenger-Gladiator | -2/Protoforge Resources | -11 -10 -10 -10 -8 -8 -6 -6 -6 -6 -5 -5 -4 -4 -4 -4 -4 -3 -3 -2 -2 -2 ----------- Run | Yrd Mat Min Sub Rec Scr Fac Low Low Dat Pro Fac Fac Ext Cet Arc Hub Res Qua Res Tes Frg Matter Collected 5693 | 230 425 30 211 100 72 427 121 135 . 177 375 163 377 143 40 245 653 491 387 429 462 Remotely . | . . . . . . . . . . . . . . . . . . . . . . Salvage Created 11988 | . 680 187 60 92 . 1372 169 331 . 161 861 65 1071 59 148 279 436 1687 1813 1611 906 Parts 595 | . 41 8 6 6 . 66 13 17 . 6 28 1 46 5 4 10 11 116 116 53 42 Haulers Intercepted 6 | . . . . . . 2 . . . . 2 . . . . . 1 . . 1 . Recyclers Shooed 4 | . 1 1 . . . . . . . . . . 1 . . 1 . . . . . Parts Field Recycled . | . . . . . . . . . . . . . . . . . . . . . . Retrieved Matter . | . . . . . . . . . . . . . . . . . . . . . . Parts Self-Destructed 30 | . . . 10 . . . 1 10 . 9 . . . . . . . . . . . Prevented 1 | . . . . . . . . 1 . . . . . . . . . . . . . Parts Restored . | . . . . . . . . . . . . . . . . . . . . . . Kills | -11 -10 -10 -10 -8 -8 -6 -6 -6 -6 -5 -5 -4 -4 -4 -4 -4 -3 -3 -2 -2 -2 ------- Run | Yrd Mat Min Sub Rec Scr Fac Low Low Dat Pro Fac Fac Ext Cet Arc Hub Res Qua Res Tes Frg Combat Hostiles Destroyed 177 | . 15 3 4 2 . 18 2 7 . 3 14 1 11 1 2 3 7 23 27 13 21 Melee 96 | . . . . . . 18 2 7 . 2 4 . 1 . . 1 5 23 21 2 10 Guns 25 | . 15 3 1 2 . . . . . . . . . . . . . . . 4 . Cannons 33 | . . . . . . . . . . . 3 1 6 1 2 2 2 . 5 6 5 AOE 15 | . . . 3 . . . . . . 1 7 . 1 . . . . . . . 3 Classes Destroyed 27 | . 8 . 2 1 . 3 1 3 . . . . 2 . . . 1 1 1 1 3 Worker 12 | . 2 1 . . . . . . . . 2 1 1 . . . . . 3 2 . Builder 6 | . 1 . . 1 . . . . . . . . 2 . . . . . . . 2 Tunneler 1 | . . . . . . . . . . . . . 1 . . . . . . . . Hauler 6 | . . . . . . 2 . . . . 2 . . . . . 1 . . 1 . Recycler 10 | . 1 2 . . . . . . . . 1 . 1 . . 1 . . 1 3 . Minesweeper 1 | . . . . . . . . 1 . . . . . . . . . . . . . Mechanic 1 | . 1 . . . . . . . . . . . . . . . . . . . . Operator 7 | . 2 . . . . 3 . . . . . . 1 . . . . 1 . . . Drone 1 | . . . . . . . . . . . . . . . . . . . . . 1 Watcher 9 | . 1 . . . . 2 . . . . 2 . . 1 . . . 2 1 . . Swarmer 34 | . 6 3 1 . . . . . . 1 . . . . . . . . 11 9 3 Grunt 39 | . 9 . . . . 7 . 4 . . 9 . 2 . . 1 4 3 . . . Duelist 1 | . . . . . . . . 1 . . . . . . . . . . . . . Researcher 2 | . . . . . . . . . . . . . . . . . . 1 . 1 . Sentry 16 | . . . . . . 3 1 . . 2 1 . 5 . 2 1 . . . . 1 Hunter 17 | . . . . . . 3 . . . . . 1 2 . . . . 7 2 . 2 Programmer 41 | . . . . 2 . 5 1 . . . 4 . . . . . . 13 12 2 2 Q-Series 3 | . . . . . . . . . . . . . . . . . . . 1 1 1 Behemoth 3 | . . . . . . . . . . . . . 2 . . . . . 1 . . Cetus Guard 1 | . . . . . . . . . . . . . . 1 . . . . . . . Lightning 1 | . . . . . . . . . . . . . . . . 1 . . . . . Hotshot 2 | . . . . . . . . . . . . . . . . . . . . . 2 Decapitator 3 | . . . . . . . . . . . . . . . . . . . . . 3 Immortal 4 | . . . . . . . . . . . . . . . . . . . . . 4 Investigator 1 | . . . . . . . . . . . . . . . . . . . . 1 . Striker 3 | . . . . . . . . . . . . . . . . . 3 . . . . Fortress 1 | . . . . . . . . . . . . . . . . . . . . 1 . V-Series 2 | . . . . . . . . . . . . . . . . . . . . . 2 Artisan 1 | . . . 1 . . . . . . . . . . . . . . . . . . Subdweller 3 | . . . 3 . . . . . . . . . . . . . . . . . . Decomposer 2 | . . . . . . . 2 . . . . . . . . . . . . . . Tinkerer 1 | . . . . . . . 1 . . . . . . . . . . . . . . Thief 2 | . . . . . . . . 2 . . . . . . . . . . . . . Best Kill Streak 10 | . 4 4 3 2 . 2 1 2 . 1 10 2 6 2 2 2 4 4 5 6 4 Combat Bots Only 8 | . 3 3 3 1 . 2 1 2 . 1 8 1 2 1 2 1 4 3 5 5 4 Max Kills in Single Turn 5 | . 2 1 2 1 . 2 1 1 . 1 5 1 1 1 1 2 1 1 1 1 3 Gunslinging 1 | . 1 . . . . . . . . . . . . . . . . . . . . Exploded 4 | . . . 2 . . . . . . 1 4 . 1 . . . . . . . 3 Melee 2 | . . . . . . 2 1 1 . 1 1 . 1 . . 1 1 1 1 1 1 Uniques/NPCs Destroyed . | . . . . . . . . . . . . . . . . . . . . . . Combat | -11 -10 -10 -10 -8 -8 -6 -6 -6 -6 -5 -5 -4 -4 -4 -4 -4 -3 -3 -2 -2 -2 -------- Run | Yrd Mat Min Sub Rec Scr Fac Low Low Dat Pro Fac Fac Ext Cet Arc Hub Res Qua Res Tes Frg Hostile Shots Fired 1548 | . 98 11 11 23 . 183 27 32 . 50 77 28 116 18 . 22 152 253 185 110 152 Missed 466 | . 29 3 4 11 . 66 11 9 . 17 25 14 40 8 . 3 32 87 67 18 22 Deflected 33 | . . . . . . . . . . . . . . . . . . 24 9 . . Hits 1082 | . 69 8 7 12 . 117 16 23 . 33 52 14 76 10 . 19 120 166 118 92 130 Melee 72 | . . . . . . . . 6 . . . . . . . . 14 . . . 52 Projectile 1010 | . 69 8 7 12 . 117 16 17 . 33 52 14 76 10 . 19 106 166 118 92 78 AOE 10 | . . . . 5 . . . . . 1 . . . . . . . 1 . . 3 Critical Strikes 78 | . 1 . . . . 6 . 3 . . 5 . 4 3 . 2 11 6 5 4 28 Actively Blocked 27 | . . . . . . . . . . . 1 . . . . . . . . 3 23 Part Disruptions 3 | . . . . . . . . . . . . . . . . 1 . 1 1 . . Damage Taken 23802 | . 774 60 106 309 . 1809 106 464 . 829 1050 333 1524 189 53 545 2800 2626 2540 2553 5132 Core 2616 | . 162 13 28 38 . 147 12 18 . 85 115 7 104 14 . . 147 257 313 214 942 Absorbed by Shields 994 | . . . . . . . . . . . . . 135 131 . . . . 298 . 430 Redirected to Shielding 316 | . . . . . . . . . . . 39 . . . . . . . . 253 24 Ignored by Resistances 811 | . . . . . . . . . . . 54 233 164 . . . . . . 247 113 Regen/Repaired (Parts) 148 | . . . . . . . . . . . . . . . . . 48 . 100 . . Core Remaining (%) 69 | 100 . . . . 3 . . . . 69 88 . . . . 89 . 68 . . . Volleys Fired 420 | . 93 15 19 10 . . . . . 5 16 9 55 13 5 15 32 . 25 49 59 Largest 2 | . 2 2 1 2 . . . . . 1 1 1 1 1 1 1 1 . 1 1 1 Hottest 130 | . 40 40 33 44 . . . . . 33 60 60 88 60 60 60 60 . 113 130 130 Shots Fired 537 | . 186 30 19 19 . . . . . 5 16 9 55 13 5 15 32 . 25 49 59 Gun 256 | . 186 30 6 18 . . . . . . . . . . . . . . . 16 . Cannon 244 | . . . . . . . . . . . 13 9 45 13 5 15 32 . 25 33 54 Launcher 37 | . . . 13 1 . . . . . 5 3 . 10 . . . . . . . 5 Special . | . . . . . . . . . . . . . . . . . . . . . . Kinetic 356 | . 186 30 6 18 . . . . . . 13 9 29 13 5 15 32 . . . . Thermal 123 | . . . . . . . . . . . . . . . . . . . 20 49 54 Explosive 27 | . . . 13 1 . . . . . 5 3 . . . . . . . . . 5 Electromagnetic 31 | . . . . . . . . . . . . . 26 . . . . . 5 . . Robot Hit Streak 21 | . 12 8 4 5 . . . . . 2 10 4 8 6 8 6 5 . 8 20 21 Robot Miss Streak 8 | . 4 3 2 5 . . . . . . 5 6 4 3 1 3 8 . 3 7 5 Penetration Max . | . . . . . . . . . . . . . . . . . . . . . . Secondary Targets 4 | . 4 . . . . . . . . . . . . . . . . . . . . Max Gunslinging Chain 1 | . 1 . . . . . . . . . . . . . . . . . . . . Capacitor 100 | . . . . . . . . . . . . . . . . . . . 25 48 27 Shots Hit Robots 818 | . 113 21 3 10 . 89 8 24 . 20 40 6 58 12 5 17 44 98 89 84 77 Core Hits 410 | . 41 10 8 8 . 32 6 11 . 7 37 6 44 8 6 12 21 38 36 36 43 Critical Kills 3 | . 1 . . . . . . . . . . . . . . . . . . 1 1 Critical Parts Destroyed 1 | . 1 . . . . . . . . . . . . . . . . . . . . Critical Strikes 85 | . 2 . . . . 12 1 2 . 3 5 . 4 2 . 3 . 16 17 3 15 Meltdown 2 | . . . . . . . . . . . . . . . . . . . . 1 1 Destroy 2 | . 2 . . . . . . . . . . . . . . . . . . . . Blast 5 | . . . . . . . . . . . 1 . . 2 . 2 . . . . . Sever 31 | . . . . . . 10 . 1 . 1 3 . . . . . . . . 2 14 Impale 45 | . . . . . . 2 1 1 . 2 1 . 4 . . 1 . 16 17 . . Melee Attacks 831 | . . . . . . 163 11 36 . 40 48 11 27 . . 7 25 156 126 76 105 Impact . | . . . . . . . . . . . . . . . . . . . . . . Slashing 350 | . . . . . . 115 1 10 . 14 40 8 . . . . . . . 60 102 Piercing 481 | . . . . . . 48 10 26 . 26 8 3 27 . . 7 25 156 126 16 3 Sneak Attacks 48 | . . . . . . 12 5 1 . 1 7 . 3 . . . 1 4 4 6 4 Combat Hostiles 14 | . . . . . . 4 1 . . . 2 . 1 . . . . 3 . . 3 Follow-up Attacks 153 | . . . . . . 24 . 4 . 7 7 . . . . . . 37 31 22 21 Martial Strikes 19 | . . . . . . . . . . . . . . . . . . 16 3 . . Damage Inflicted 37444 | . 1165 178 738 156 . 3778 455 799 . 794 3068 335 3603 797 302 846 2215 4402 4175 4464 5174 Guns 1880 | . 1165 178 11 111 . . . . . . . . . . . . . . . 415 . Cannons 10190 | . . . . . . . . . . . 681 308 1869 797 302 737 1496 . 816 784 2400 Explosions 3186 | . . . 727 45 . . . . . 57 1139 . 868 . . . . . . . 350 Melee 22143 | . . . . . . 3778 455 799 . 737 1248 27 866 . . 109 719 4402 3314 3265 2424 Ramming 45 | . . . . . . . . . . . . . . . . . . . 45 . . Kinetic 7311 | . 1165 178 11 111 . . . . . . 681 308 1525 797 302 737 1496 . . . . Thermal 4309 | . . . . . . . . . . . . . 66 . . . . . 644 1199 2400 Explosive 2318 | . . . 727 45 . . . . . 57 1139 . . . . . . . . . 350 Electromagnetic 1318 | . . . . . . . . . . . . . 1146 . . . . . 172 . . Impact . | . . . . . . . . . . . . . . . . . . . . . . Slashing 10040 | . . . . . . 2888 . 144 . 263 1158 . . . . . . . . 3163 2424 Piercing 12103 | . . . . . . 890 455 655 . 474 90 27 866 . . 109 719 4402 3314 102 . Highest Corruption 23 | . . . . 1 . 3 3 3 3 3 1 . . . . 23 1 8 7 7 16 Average Corruption 3 | . . . . 1 . 2 3 3 3 3 1 . . . . 6 1 4 4 7 9 Corruption Purged . | . . . . . . . . . . . . . . . . . . . . . . Corruption Blocked . | . . . . . . . . . . . . . . . . . . . . . . Effects 225 | . . . . 2 . 29 16 19 1 15 1 . . . . 4 10 38 24 20 46 Message Errors 58 | . . . . . . 5 4 5 . 4 . . . . . 1 4 10 6 7 12 Matter Fused 58 | . . . . 1 . 8 3 6 . 5 . . . . . 1 1 10 9 4 10 Heat Flow Errors 26 | . . . . . . 4 3 . . 2 . . . . . . 2 7 2 1 5 Energy Discharges 35 | . . . . . . 8 1 3 . 2 . . . . . 1 2 5 1 5 7 Parts Rejected 5 | . . . . . . . . . . . 1 . . . . . . . 1 1 2 Parts Fused 2 | . . . . . . 1 . 1 . . . . . . . . . . . . . Data Loss (minor) 23 | . . . . . . 1 3 2 . 1 . . . . . 1 1 3 3 2 6 Data Loss (major) 13 | . . . . 1 . 1 2 . . . . . . . . . . 3 2 . 4 Alerts 5 | . . . . . . 1 . 2 1 1 . . . . . . . . . . . Overload Shots . | . . . . . . . . . . . . . . . . . . . . . . Overflow Damage 2090 | . . . . 4 . 201 26 56 . 73 106 7 126 . . 55 59 603 314 248 212 Projectiles 259 | . . . . . . . . . . . 28 7 2 . . . 20 . 50 99 53 Explosions 27 | . . . . 4 . . . . . . 23 . . . . . . . . . . Melee 1804 | . . . . . . 201 26 56 . 73 55 . 124 . . 55 39 603 264 149 159 Knockbacks 41 | . . . . . . . . . . . 5 3 5 . . 2 26 . . . . Impact . | . . . . . . . . . . . . . . . . . . . . . . Kinetic 39 | . . . . . . . . . . . 3 3 5 . . 2 26 . . . . Secondary 2 | . . . . . . . . . . . 2 . . . . . . . . . . Self-Inflicted Damage 32 | . . . 32 . . . . . . . . . . . . . . . . . . Shots 1 | . . . 1 . . . . . . . . . . . . . . . . . . Rammed . | . . . . . . . . . . . . . . . . . . . . . . Targets Rammed 1 | . . . . . . . . . . . . . . . . . . . 1 . . Kicked 1 | . . . . . . . . . . . . . . . . . . . 1 . . Crushed . | . . . . . . . . . . . . . . . . . . . . . . Highest Temperature 396 | . 30 . . 8 . 257 271 6 . 264 159 216 285 139 130 154 332 253 396 196 224 Average Temperature 99 | . 10 . . 4 . 103 126 5 . 115 72 110 105 61 64 52 146 89 116 114 88 Received Heat Transfer 3552 | . 336 . 15 . . 495 18 189 . 180 241 . 161 9 9 48 820 84 605 216 126 Effects 6 | . . . . . . . . . . . . . 2 . . . 4 . . . . Energy Bleed 1 | . . . . . . . . . . . . . . . . . 1 . . . . Interference 5 | . . . . . . . . . . . . . 2 . . . 3 . . . . Siege Activations . | . . . . . . . . . . . . . . . . . . . . . . Martial Activations 15 | . . . . . . . . . . . . . . . . . . 9 6 . . Total Turns 670 | . . . . . . . . . . . . . . . . . . 503 167 . . Longest Duration 133 | . . . . . . . . . . . . . . . . . . 133 58 . . Shielding Activations . | . . . . . . . . . . . . . . . . . . . . . . Robots Disrupted . | . . . . . . . . . . . . . . . . . . . . . . Combat Hostiles . | . . . . . . . . . . . . . . . . . . . . . . Robots Corrupted 4 | . . . . . . . . . . . . . 3 . . . . . 1 . . Combat Hostiles 4 | . . . . . . . . . . . . . 3 . . . . . 1 . . Parts Fried 10 | . . . . . . . . . . . . . 8 . . . . . 2 . . Impact Corruptions . | . . . . . . . . . . . . . . . . . . . . . . Robots Melted 2 | . . . . . . . . . . . . . . . . . . . . 1 1 Combat Hostiles 2 | . . . . . . . . . . . . . . . . . . . . 1 1 Parts Melted 4 | . . . . . . . . . . . . . . . . . . . 2 2 . Heat Transferred 2889 | . . . . . . . . . . . . . 100 . . . . . 555 1162 1072 Parts Sabotaged . | . . . . . . . . . . . . . . . . . . . . . . Parts Stolen 2 | . . . . . . . . 2 . . . . . . . . . . . . . Parts Stripped . | . . . . . . . . . . . . . . . . . . . . . . Power Chain Reactions 2 | . . . . . . . . . . . . . 2 . . . . . . . . Alert | -11 -10 -10 -10 -8 -8 -6 -6 -6 -6 -5 -5 -4 -4 -4 -4 -4 -3 -3 -2 -2 -2 ------- Run | Yrd Mat Min Sub Rec Scr Fac Low Low Dat Pro Fac Fac Ext Cet Arc Hub Res Qua Res Tes Frg Maximum Alert Level 3 | . . . . . . 1 . . . . 3 1 1 1 1 3 1 1 1 1 1 Low Security (%) 68 | 100 100 100 . 100 . 82 . . . . 31 37 80 . 11 66 76 62 86 18 99 Level 1 23 | . . . . . . 17 . . . . 1 62 19 99 88 4 23 37 13 81 . Level 2 4 | . . . . . . . . . . . 43 . . . . 28 . . . . . Level 3 2 | . . . . . . . . . . . 23 . . . . . . . . . . Level 4 . | . . . . . . . . . . . . . . . . . . . . . . Level 5 . | . . . . . . . . . . . . . . . . . . . . . . High Security . | . . . . . . . . . . . . . . . . . . . . . . Max Security . | . . . . . . . . . . . . . . . . . . . . . . Peak Influence 786 | . 187 75 . 41 . 370 . . . . 786 380 396 383 304 701 372 263 244 319 215 Initial 380 | . . 62 . . . . . . . . . 380 88 201 128 88 359 14 18 131 118 Average 158 | . 52 19 . 12 . 107 . . . . 476 243 155 302 260 220 107 119 100 238 82 Influence Increases 9096 | . 438 85 80 188 . 857 50 130 . 96 1332 232 828 372 206 1069 285 761 804 518 765 Destroy 0b10 Robot/C 4420 | . 300 60 20 40 . 360 40 100 . 60 560 60 380 160 80 320 160 480 540 300 400 Destroy 0b10 Robot/NC 420 | . 40 15 . 5 . 35 . 5 . 5 85 15 45 10 5 55 15 15 25 30 15 Destroy Leader 808 | . 62 10 . . . 138 10 10 . . 120 10 42 . . 74 34 74 112 42 70 Allied During Kill 1080 | . . . . . . . . . . 1 73 14 262 170 85 443 32 . . . . Trap Triggered on 0b10 10 | . . . . . . 10 . . . . . . . . . . . . . . . Successful Hack 244 | . 6 . . . . . . . . . 24 39 6 . . 18 . 85 40 26 . Select Force Hacks 120 | . . . . 120 . . . . . . . . . . . . . . . . . Disable Machine 525 | . . . . 15 . 60 . . . . 60 45 15 . 30 75 . 60 15 75 75 Destroy Structure 884 | . . . . 8 . 29 . . . . 290 34 48 32 6 84 44 32 42 45 190 Partial Spotted 15 | . . . . . . 15 . . . . . . . . . . . . . . . Lose Combat Pursuer 570 | . 30 . 60 . . 210 . 15 . 30 120 15 30 . . . . 15 30 . 15 Influence Decreases 8871 | . 278 245 80 188 . 491 416 130 . 96 554 828 650 411 273 638 944 755 602 541 751 Entered New Map 1792 | . . 98 . . . . 136 . . . . 398 94 159 193 166 326 12 14 103 93 Time Decay 5772 | . 258 147 80 178 . 439 280 130 . 86 464 380 416 222 60 262 486 490 498 398 498 Lost Part 582 | . 20 . . 10 . 52 . . . 10 50 10 20 10 . 10 50 50 90 40 160 Lost Ally 522 | . . . . . . . . . . . 40 40 120 20 20 200 82 . . . . Purge Threat 203 | . . . . . . . . . . . . . . . . . . 203 . . . Squads Dispatched 73 | . 2 . . . . 12 . . . . 12 6 3 . . 3 7 10 7 6 5 Investigation 21 | . . . . . . 6 . . . . 6 2 2 . . 1 3 . 1 . . Extermination 26 | . . . . . . 4 . . . . 3 2 . . . 1 . 6 4 3 3 Reinforcement 23 | . 2 . . . . 1 . . . . 2 2 1 . . 1 4 4 2 2 2 Assault 1 | . . . . . . . . . . . . . . . . . . . . 1 . Garrison 2 | . . . . . . 1 . . . . 1 . . . . . . . . . . Intercept . | . . . . . . . . . . . . . . . . . . . . . . Searches Triggered . | . . . . . . . . . . . . . . . . . . . . . . Data Miner Redirects 5 | . . . . . . . . . . . 3 . 1 . . . . . 1 . . Construction Impeded 3 | . . . . . . . . . . . 1 . 1 . . 1 . . . . . Haulers Reinforced 2 | . . . . . . . . . . . 1 . . . . . 1 . . . . Active Scanning Responses . | . . . . . . . . . . . . . . . . . . . . . . Cargo Convoy Interrupts . | . . . . . . . . . . . . . . . . . . . . . . Stealth | -11 -10 -10 -10 -8 -8 -6 -6 -6 -6 -5 -5 -4 -4 -4 -4 -4 -3 -3 -2 -2 -2 --------- Run | Yrd Mat Min Sub Rec Scr Fac Low Low Dat Pro Fac Fac Ext Cet Arc Hub Res Qua Res Tes Frg Distress Signals 40 | . . . . . . 2 . . . 16 1 . 4 2 . 2 9 1 2 1 . Communications Jammed 40 | . . . . . . . . . . . . 3 8 12 1 15 . . . . 1 Distress Signals 38 | . . . . . . . . . . . . 1 8 12 1 15 . . . . 1 Times Spotted 321 | . 33 3 14 3 . 38 1 9 . 7 30 6 19 9 5 16 16 33 40 17 22 Peak Tracking Total 8 | . 4 3 6 3 . 5 1 4 . 4 8 2 4 5 2 5 7 5 5 4 5 Tactical Retreats 24 | . 2 . 2 . . 8 . 1 . 1 4 1 2 . . . . 1 1 . 1 Traps | -11 -10 -10 -10 -8 -8 -6 -6 -6 -6 -5 -5 -4 -4 -4 -4 -4 -3 -3 -2 -2 -2 ------- Run | Yrd Mat Min Sub Rec Scr Fac Low Low Dat Pro Fac Fac Ext Cet Arc Hub Res Qua Res Tes Frg Traps Triggered 4 | . . . . . . . . . . . 1 . 1 . . . 1 1 . . . Indirectly . | . . . . . . . . . . . . . . . . . . . . . . Trap Hack Attempts . | . . . . . . . . . . . . . . . . . . . . . . Triggered . | . . . . . . . . . . . . . . . . . . . . . . Disarmed . | . . . . . . . . . . . . . . . . . . . . . . Reprogrammed . | . . . . . . . . . . . . . . . . . . . . . . Reused 1 | . . . . . . 1 . . . . . . . . . . . . . . . Traps Extracted . | . . . . . . . . . . . . . . . . . . . . . . Installed 1 | . . . . . . 1 . . . . . . . . . . . . . . . Triggered 1 | . . . . . . 1 . . . . . . . . . . . . . . . Most Traps Carried 3 | . . 3 3 3 3 1 . . . . . . . . . . . . . . . Machines | -11 -10 -10 -10 -8 -8 -6 -6 -6 -6 -5 -5 -4 -4 -4 -4 -4 -3 -3 -2 -2 -2 ---------- Run | Yrd Mat Min Sub Rec Scr Fac Low Low Dat Pro Fac Fac Ext Cet Arc Hub Res Qua Res Tes Frg Machines Disabled 48 | . . . 4 1 . 4 . . . 3 4 3 3 . 2 5 . 4 1 6 8 Max in Single Turn 2 | . . . 1 1 . 1 . . . 1 1 1 2 . 1 1 . 1 1 1 2 Garrison Access 5 | . . . . . . 1 . . . . 1 . . . . 1 1 . 1 . . Network Hub 1 | . . . . . . . . . . . . . . . . 1 . . . . . Machines Repaired 2 | . . . . 2 . . . . . . . . . . . . . . . . . Machines Dismantled 1 | . . . . . . . . . . . . . . . . 1 . . . . . Machines Sabotaged . | . . . . . . . . . . . . . . . . . . . . . . Overloaded Fab Kills . | . . . . . . . . . . . . . . . . . . . . . . Hacking | -11 -10 -10 -10 -8 -8 -6 -6 -6 -6 -5 -5 -4 -4 -4 -4 -4 -3 -3 -2 -2 -2 --------- Run | Yrd Mat Min Sub Rec Scr Fac Low Low Dat Pro Fac Fac Ext Cet Arc Hub Res Qua Res Tes Frg Machines Accessed 67 | . 1 . . 4 1 10 . 1 2 . 9 6 6 . . 3 6 5 8 5 . Terminals 30 | . 1 . . . . 2 . . . . 3 3 4 . . 2 2 5 4 4 . Fabricators 6 | . . . . . . 1 . . . . 1 1 . . . . 2 . 1 . . Repair Stations 3 | . . . . . . . . . . . . . 1 . . . 1 . 1 . . Recycling Units 16 | . . . . 4 . 5 . . . . 3 2 1 . . . . . 1 . . Scanalyzers 1 | . . . . . . . . . . . . . . . . . . . . 1 . Garrison Access 7 | . . . . . . 2 . . . . 2 . . . . 1 1 . 1 . . Total Hacks 170 | . 1 . . 4 3 19 . 1 18 . 19 12 19 . . 4 15 23 22 10 . Successful 92 | . 1 . . 4 3 7 . 1 18 . 6 9 6 . . 3 10 6 13 5 . Failed 78 | . . . . . . 12 . . . . 13 3 13 . . 1 5 17 9 5 . Catastrophic 15 | . . . . . . 3 . . . . 2 1 2 . . . . 5 1 1 . Database Lockouts . | . . . . . . . . . . . . . . . . . . . . . . Manual 52 | . 1 . . 4 . 9 . . . . 7 10 9 1 . 2 3 1 2 3 . Terminals 84 | . 1 . . . . 4 . . . . 7 9 13 . . 2 7 23 11 7 . Fabricators 11 | . . . . . . 1 . . . . 3 1 . . . . 4 . 2 . . Repair Stations 13 | . . . . . . . . . . . . . 4 . . . 3 . 6 . . Recycling Units 20 | . . . . 4 . 7 . . . . 4 2 2 . . . . . 1 . . Scanalyzers 3 | . . . . . . . . . . . . . . . . . . . . 3 . Garrison Access 17 | . . . . . . 7 . . . . 5 . . . . 2 1 . 2 . . Terminal Hacks 50 | . . . . . 3 1 . 1 18 . 1 5 4 . . . 3 6 4 4 . Record 3 | . . . . . 3 . . . . . . . . . . . . . . . . Part Schematic 10 | . . . . . . . . . 10 . . . . . . . . . . . . Robot Schematic 5 | . . . . . . . . . 5 . . . . . . . . . . . . Robot Analysis 3 | . . . . . . . . . . . . . 1 . . . 1 1 . . . Prototype ID Bank 3 | . . . . . . . . . 3 . . . . . . . . . . . . Open Door 1 | . . . . . . . . 1 . . . . . . . . . . . . . Level Access Points 3 | . . . . . . . . . . . 1 1 . . . . . 1 . . . Branch Access Points 4 | . . . . . . . . . . . . 1 . . . . 1 . 1 1 . Terminal Index 2 | . . . . . . . . . . . . 1 . . . . . . 1 . . Recycling Unit Index 1 | . . . . . . . . . . . . . 1 . . . . . . . . Unreport Threat 2 | . . . . . . . . . . . . . . . . . . 2 . . . Locate Traps 3 | . . . . . . . . . . . . 1 . . . . . . 2 . . Recall Investigation 1 | . . . . . . . . . . . . . 1 . . . . . . . . Recall Extermination 1 | . . . . . . . . . . . . 1 . . . . . . . . . Recall Reinforcements 1 | . . . . . . . . . . . . . . . . . . 1 . . . Zone Layout 5 | . . . . . . 1 . . . . . . 1 . . . 1 1 . 1 . Protovariant Controls 2 | . . . . . . . . . . . . . . . . . . . . 2 . Fabricator Hacks 7 | . . . . . . 1 . . . . 1 1 . . . . 3 . 1 . . Network Status 3 | . . . . . . 1 . . . . 1 . . . . . . . 1 . . Load Schematic 1 | . . . . . . . . . . . . . . . . . 1 . . . . Build 3 | . . . . . . . . . . . . 1 . . . . 2 . . . . Repair Station Hacks 9 | . . . . . . . . . . . . . 1 . . . 2 . 6 . . Scan Component 5 | . . . . . . . . . . . . . 1 . . . 1 . 3 . . Repair 4 | . . . . . . . . . . . . . . . . . 1 . 3 . . Recycling Unit Hacks . | . . . . . . . . . . . . . . . . . . . . . . Scanalyzer . | . . . . . . . . . . . . . . . . . . . . . . Garrison Access Hacks 5 | . . . . . . 1 . . . . 1 . . . . 1 1 . 1 . . Seal Access 5 | . . . . . . 1 . . . . 1 . . . . 1 1 . 1 . . Unauthorized Hacks 21 | . 1 . . 4 . 4 . . . . 3 3 1 . . 2 1 . 1 1 . Terminals 4 | . 1 . . . . . . . . . . 1 . . . 2 . . . . . Assimilate 2 | . . . . . . . . . . . . . . . . 2 . . . . . Operators 2 | . 1 . . . . . . . . . . 1 . . . . . . . . . Fabricators 1 | . . . . . . . . . . . . . . . . . 1 . . . . Prioritize 1 | . . . . . . . . . . . . . . . . . 1 . . . . Repair Stations . | . . . . . . . . . . . . . . . . . . . . . . Recycling Units 15 | . . . . 4 . 4 . . . . 3 2 1 . . . . . 1 . . Tunnel 4 | . . . . 4 . . . . . . . . . . . . . . . . . Fedlink 11 | . . . . . . 4 . . . . 3 2 1 . . . . . 1 . . Scanalyzers 1 | . . . . . . . . . . . . . . . . . . . . 1 . Researchers 1 | . . . . . . . . . . . . . . . . . . . . 1 . Garrison Access . | . . . . . . . . . . . . . . . . . . . . . . Data Cores Recovered 6 | . . . . . . 1 . . . . 1 1 . . . 1 1 1 . . . Used 2 | . . . . . . . . . . . 1 . . . . . . 1 . . . Hacking Detections 38 | . . . . . . 6 . . . . 6 4 5 . . 2 4 4 4 3 . Full Trace Events 5 | . . . . . . 1 . . . . 2 . 1 . . . 1 . . . . Feedback Events . | . . . . . . . . . . . . . . . . . . . . . . Feedback Blocked 1 | . . . . . . . . . . . 1 . . . . . . . . . . Robot Schematics Acquired 6 | . . . . . . . . . 5 . . . . . . . . 1 . . . Robots Built 3 | . . . . . . . . . . . . 2 . . . . 1 . . . . Authchips . | . . . . . . . . . . . . . . . . . . . . . . Time 186 | . . . . . . . . . . . . 93 . . . . 93 . . . . Total Robot Build Rating 21 | . . . . . . . . . . . . 14 . . . . 7 . . . . Part Schematics Acquired 19 | . . . . . . . . . 10 . . . . . . . . 3 . 6 . Parts Built . | . . . . . . . . . . . . . . . . . . . . . . Authchips . | . . . . . . . . . . . . . . . . . . . . . . Time 56 | . . . . . . . . . . . . . . . . . 56 . . . . Total Part Build Rating . | . . . . . . . . . . . . . . . . . . . . . . Part Studies Acquired . | . . . . . . . . . . . . . . . . . . . . . . Parts Repaired 3 | . . . . . . . . . . . . . . . . . 1 . 2 . . Time 318 | . . . . . . . . . . . . . . . . . 62 . 256 . . Parts Recycled . | . . . . . . . . . . . . . . . . . . . . . . Recycled Matter . | . . . . . . . . . . . . . . . . . . . . . . Retrieved Matter . | . . . . . . . . . . . . . . . . . . . . . . Retrieved Components . | . . . . . . . . . . . . . . . . . . . . . . Parts Scanalyzed . | . . . . . . . . . . . . . . . . . . . . . . Part Schematics Acquired . | . . . . . . . . . . . . . . . . . . . . . . Parts Damaged . | . . . . . . . . . . . . . . . . . . . . . . Bothacking | -11 -10 -10 -10 -8 -8 -6 -6 -6 -6 -5 -5 -4 -4 -4 -4 -4 -3 -3 -2 -2 -2 ------------ Run | Yrd Mat Min Sub Rec Scr Fac Low Low Dat Pro Fac Fac Ext Cet Arc Hub Res Qua Res Tes Frg Used RIF Installer . | . . . . . . . . . . . . . . . . . . . . . . Robots Hacked . | . . . . . . . . . . . . . . . . . . . . . . Non-combat . | . . . . . . . . . . . . . . . . . . . . . . Combat . | . . . . . . . . . . . . . . . . . . . . . . Robot Hacks Applied . | . . . . . . . . . . . . . . . . . . . . . . Relay Couplers Released . | . . . . . . . . . . . . . . . . . . . . . . Fabnet Peak Effective % . | . . . . . . . . . . . . . . . . . . . . . . Robots Rewired 6 | . . . . . . . . . . 2 . . 4 . . . . . . . . Allies Hacked 1 | . . . . . . . . . . . 1 . . . . . . . . . . Hacks Repelled . | . . . . . . . . . . . . . . . . . . . . . . Allies | -11 -10 -10 -10 -8 -8 -6 -6 -6 -6 -5 -5 -4 -4 -4 -4 -4 -3 -3 -2 -2 -2 -------- Run | Yrd Mat Min Sub Rec Scr Fac Low Low Dat Pro Fac Fac Ext Cet Arc Hub Res Qua Res Tes Frg Total Allies 32 | . . . . . . . . . . 2 . 2 22 5 . . 1 . . . . Largest Group 19 | . . . . . . . . . . 2 2 2 15 19 19 17 5 . . . . Highest-Rated Group 1197 | . . . . . . . . . . 98 98 112 776 1197 1190 980 342 . . . . Highest-Rated Ally 159 | . . . . . . . . . . 49 49 56 159 159 159 96 89 . . . . Initial UFD Resources 94 | . . . . . . 23 41 41 41 45 45 63 77 79 79 79 81 81 84 94 94 Total Orders 3 | . . . . . . . . 2 . . . . . . . . 1 . . . . AID 1 | . . . . . . . . . . . . . . . . . 1 . . . . EXPLORE 2 | . . . . . . . . 2 . . . . . . . . . . . . . Ally Attacks 422 | . . . . . . . . . . 8 29 26 89 58 30 129 53 . . . . Total Damage 14813 | . . . . . . . . . . 419 2859 739 2417 2034 751 4232 1362 . . . . Kills 77 | . . . . . . . . . . 1 24 4 10 8 3 24 3 . . . . Allies Corrupted 4 | . . . . . . . . . . . . . . . . 4 . . . . . Allies Melted . | . . . . . . . . . . . . . . . . . . . . . . Intel | -11 -10 -10 -10 -8 -8 -6 -6 -6 -6 -5 -5 -4 -4 -4 -4 -4 -3 -3 -2 -2 -2 ------- Run | Yrd Mat Min Sub Rec Scr Fac Low Low Dat Pro Fac Fac Ext Cet Arc Hub Res Qua Res Tes Frg Active Infowar (turns) 16558 | . . . . . . 2543 697 947 91 909 1502 897 1014 469 127 564 1560 1788 1333 952 1165 Optics 148 | . . . . . . 146 . . . . . . . . . . 2 . . . . Sensors 10379 | . . . . . . . 689 947 91 909 1502 897 1014 469 127 564 1259 1671 240 . . A.S.S. 2 | . . . . . . . . . . . . . . . . . . . . . 2 IFF 2384 | . . . . . . 2376 8 . . . . . . . . . . . . . . Machine Analysis 2546 | . . . . . . 2543 3 . . . . . . . . . . . . . . Jamming 7858 | . . . . . . . . . . . . 568 869 469 127 560 1495 562 1093 952 1163 Robot Analysis Total 3 | . . . . . . . . . . . . . 1 . . . 1 1 . . . Derelict Logs Recovered 6 | . . 1 1 . 1 . 2 . . 1 . . . . . . . . . . . Drone Launches 2 | . . . . . . . . 2 . . . . . . . . . . . . . Drone Recoveries . | . . . . . . . . . . . . . . . . . . . . . . Exploration | -11 -10 -10 -10 -8 -8 -6 -6 -6 -6 -5 -5 -4 -4 -4 -4 -4 -3 -3 -2 -2 -2 ------------- Run | Yrd Mat Min Sub Rec Scr Fac Low Low Dat Pro Fac Fac Ext Cet Arc Hub Res Qua Res Tes Frg Turns Passed 21724 | 65 794 571 721 596 1711 2550 763 1084 91 924 1502 897 1014 469 127 564 1638 1972 1389 952 1330 Spaces Moved 13051 | 37 243 370 510 423 1202 1529 536 492 75 591 1006 635 540 168 56 360 1179 1149 759 592 599 Core 2 | 2 . . . . . . . . . . . . . . . . . . . . . Treads 201 | 35 166 . . . . . . . . . . . . . . . . . . . . Legs 11767 | . . . . 299 1202 1529 536 492 75 591 1006 635 540 168 56 360 1179 1149 759 592 599 Wheels 1081 | . 77 370 510 124 . . . . . . . . . . . . . . . . . Hover . | . . . . . . . . . . . . . . . . . . . . . . Flight . | . . . . . . . . . . . . . . . . . . . . . . Fastest Speed 50 | 50 140 110 110 110 130 122 122 122 122 122 120 120 120 120 120 120 111 108 114 116 116 Average Speed 123 | 154 190 139 110 124 139 124 122 122 122 122 120 120 120 120 120 120 116 119 121 116 116 Slowest Speed 320 | 160 320 140 110 130 200 193 122 192 122 122 190 190 120 120 120 120 120 228 228 116 120 Overloaded Moves 122 | . . . . . . . . . . . . . . . . . . 93 29 . . Propulsion Burnouts . | . . . . . . . . . . . . . . . . . . . . . . Robots Hopped . | . . . . . . . . . . . . . . . . . . . . . . Potential Cave-ins 20 | . . . . . . . . . . 7 . . . . . . . . 2 . 11 Cave-ins Triggered 2 | . . . . . . . . . . . . . . . . . . . . . 2 Exploration Rate (%) 50 | 4 39 76 22 83 81 30 65 82 68 53 26 14 68 59 76 37 29 94 25 64 22 Regions Visited 21 Branch Regions 15 Pre-discovered Areas 8 | . . . 1 4 . 1 2 . . . . . . . . . . . . . . Known Exits Taken 14 | . . . . . . 1 1 1 1 1 1 1 1 1 1 1 1 1 1 . . Unknown Exits Taken 7 | 1 1 1 1 1 1 . . . . . . . . . . . . . . 1 . Scrap Searched 8 | . . 1 . . 5 . 1 . . 1 . . . . . . . . . . . Spaces Dug 137 | . . . . . . 29 2 2 . 5 11 9 3 . . 2 3 17 16 9 29 Terrain Destroyed 336 | . . . 50 8 . 29 2 2 . 53 40 12 19 3 1 6 12 17 16 16 50 Melee 116 | . . . . . . 29 2 2 . 5 11 9 . . . 1 3 17 13 8 16 Projectile 78 | . . . . . . . . . . . 10 3 9 3 1 5 9 . 3 8 27 AOE 142 | . . . 50 8 . . . . . 48 19 . 10 . . . . . . . 7 Terrain Rammed . | . . . . . . . . . . . . . . . . . . . . . . Walls Destroyed . | . . . . . . . . . . . . . . . . . . . . . . Machines Disabled . | . . . . . . . . . . . . . . . . . . . . . . Actions | -11 -10 -10 -10 -8 -8 -6 -6 -6 -6 -5 -5 -4 -4 -4 -4 -4 -3 -3 -2 -2 -2 --------- Run | Yrd Mat Min Sub Rec Scr Fac Low Low Dat Pro Fac Fac Ext Cet Arc Hub Res Qua Res Tes Frg Total 17333 | 42 408 401 651 476 1248 1970 629 916 74 732 1217 743 798 423 111 464 1372 1633 1121 802 1102 Wait 2467 | . 56 . 119 34 . 238 60 380 . 76 113 63 98 232 51 47 54 335 195 13 303 Move 13028 | 36 242 369 509 422 1201 1527 535 491 74 590 1005 634 539 167 55 359 1178 1148 759 591 597 Hop . | . . . . . . . . . . . . . . . . . . . . . . Pick Up 161 | . 5 10 4 . 21 26 2 2 . 3 13 7 10 3 . 6 14 3 14 11 7 Fast Attach 142 | 6 5 . . . 3 12 1 6 . 5 11 3 6 3 . 2 15 17 7 25 15 Attach 117 | . . 4 . 3 3 15 9 3 . 4 7 3 6 1 . 3 10 5 17 8 16 Detach 40 | . . . . 1 . 1 9 2 . 2 3 . 3 . . . 1 1 3 6 8 Swap 103 | . 2 . . 1 1 10 . . . 3 2 3 3 . . 9 15 21 11 9 13 Drop 226 | . 5 3 . 2 19 25 3 6 . 8 14 10 11 4 . 13 28 18 13 32 12 Fire 420 | . 93 15 19 10 . . . . . 5 16 9 55 13 5 15 32 . 25 49 59 Melee 555 | . . . . . . 114 10 26 . 26 33 11 27 . . 7 25 81 77 48 70 Ram . | . . . . . . . . . . . . . . . . . . . . . . Kick . | . . . . . . . . . . . . . . . . . . . . . . Crush . | . . . . . . . . . . . . . . . . . . . . . . Escape Stasis 22 | . . . . . . 1 . . . . . . 5 . . . . 4 . 10 2 Rewire 44 | . . . . . . . . . . 9 . . 35 . . . . . . . . Trap 1 | . . . . . . 1 . . . . . . . . . . . . . . . Miscellaneous 7 | . . . . 3 . . . . . 1 . . . . . 3 . . . . . Route ------- -11/Scrapyard -10/Materials (discovered 2 exits: [*Mat] / [*Min]) -10/Mines (discovered 4 exits: [*Mat x2] / [*Exi] / [*Sub]) -10/Subcaves -8/Recycling (discovered 2 exits: *Fac / *Scr) -8/Scraptown (discovered 2 exits: *Fac x2) -6/Factory (discovered 2 exits: *Fac / *Low) -6/Lower Caves -6/Lower Caves (discovered 2 exits: *Fac / *Dat) -6/Data Miner -5/Proximity Caves -5/Factory (discovered 4 exits: *Fac x4) -4/Factory (discovered 8 exits: Res x4 / *Upp x2 / *Ext x2) -4/Extension (discovered 2 exits: *Res / *Cet) -4/Cetus (discovered 2 exits: *Res / *Arc) -4/Archives (discovered 2 exits: *Hub x2) -4/Hub_04(d) -3/Research (discovered 5 exits: *Res x2 / *Arm / *Qua x2) -3/Quarantine -2/Research (discovered 2 exits: *Tes x2) -2/Testing (discovered 3 exits: [*Acc] / [*Sec] / [*Frg]) -2/Protoforge History --------- Turn | Location | Event 37 | -11/Scrapyard | Discovered new exit (range 14) 66 | -11/Scrapyard | Entered Materials 327 | -10/Materials | Build established: Mutant 540 | -10/Materials | Discovered new exit (range 7) 757 | -10/Materials | Core integrity fell below 50% 822 | -10/Materials | Discovered new exit (range 14) 860 | -10/Materials | Entered Mines 880 | -10/Mines | Discovered new exit (range 8) 912 | -10/Mines | Met a Derelict bent on vengeance 957 | -10/Mines | A weapon hastily lodged in a ceiling crevice suddenly fell to the ground 991 | -10/Mines | Found a hidden stash of uninstalled traps 1009 | -10/Mines | Build established: Scavenger-Mutant 1274 | -10/Mines | Learned 8 Materials zone layouts 1281 | -10/Mines | Received a Rocket Launcher from a helpful Derelict 1322 | -10/Mines | Found DCF Scrap (12 items) 1341 | -10/Mines | Deemed a non-threat by the Exiles lab entrance 1341 | -10/Mines | Discovered new exit (range 5) 1363 | -10/Mines | Discovered new exit (range 9) 1404 | -10/Mines | Discovered new exit (range 6) 1431 | -10/Mines | Entered Subcaves 1533 | -10/Subcaves | Discovered new exit (range 10) 1584 | -10/Subcaves | Ambushed by swarm of Subdwellers 1594 | -10/Subcaves | Ambushed by Subdwellers from Twisted Machinery 1596 | -10/Subcaves | Core integrity fell below 20% 1713 | -10/Subcaves | Build established: Mutant 1817 | -10/Subcaves | Visited 4L-MR0's lab 1987 | -10/Subcaves | Found Prototype Leg 2152 | -10/Subcaves | Entered Recycling 2296 | -8/Recycling | Discovered new exit (range 15) 2300 | -8/Recycling | Identified Cargo Legs 2301 | -8/Recycling | Attached Cargo Legs, gained temporary slots: Utility x2 2717 | -8/Recycling | Scanned before Scraplab entrance 2737 | -8/Recycling | Entered Scraplab 2747 | -8/Recycling | Discovered new exit (range 2) 2748 | -8/Recycling | Entered Scraptown 2748 | -8/Scraptown | System corruption cleaned by C-Scrubber 2964 | -8/Scraptown | Heard Great Nut preacher, LISTEN AND RECITE! 3034 | -8/Scraptown | Visited Fellowship of the Rings 3300 | -8/Scraptown | Discovered new exit (range 11) 3361 | -8/Scraptown | Scanned Subdweller tech in exchange for log data 3365 | -8/Scraptown | Learned Factory interactive machine intel 3404 | -8/Scraptown | Visited Cave Peace 3431 | -8/Scraptown | Visited Comm Corps 3470 | -8/Scraptown | Visited Cyclists 3494 | -8/Scraptown | Visited UFD Registry 3494 | -8/Scraptown | Registered with UFD as "Nanocoil" 3523 | -8/Scraptown | Visited DA-N13 Charitable Foundation 3535 | -8/Scraptown | Found DCF Scrap (32 items) 3638 | -8/Scraptown | Visited Chapter 10 3657 | -8/Scraptown | Visited Science Guys 3686 | -8/Scraptown | Visited Derelict Rescue Squad 3707 | -8/Scraptown | Visited Research Penetration Think Tank 3732 | -8/Scraptown | Visited Cartography Club 3819 | -8/Scraptown | Visited Science Testing Area 3842 | -8/Scraptown | Visited Junk Repository 4039 | -8/Scraptown | Delivered Scrap Shield to a Scientist 4315 | -8/Scraptown | Found DRS Beacon 4366 | -8/Scraptown | Met Optimus 4366 | -8/Scraptown | Accepted into 0bPrime 4454 | -8/Scraptown | Discovered new exit (range 5) 4459 | -8/Scraptown | Entered Factory 4459 | -6/Factory | Evolved 8 slots: Power x1, Propulsion x3, Utility x3, Weapon x1 4460 | -6/Factory | Loaded intel: 54 interactive machine locations 4496 | -6/Factory | Discovered new exit (range 11) 4527 | -6/Factory | Discovered new exit (range 9) 4614 | -6/Factory | Identified exit to Factory 4627 | -6/Factory | Identified exit to Lower Caves 4792 | -6/Factory | Build established: Derelict-Gladiator 4858 | -6/Factory | Garrison activated, responded to threat 5074 | -6/Factory | Found Unknown Protection 5312 | -6/Factory | Loaded intel: 8 recycling unit locations 5372 | -6/Factory | Build established: Gladiator 5834 | -6/Factory | Learned location of Protoforge (-2) 5857 | -6/Factory | Found Prototype Processor 5857 | -6/Factory | Identified Exp. Targeting Computer 6251 | -6/Factory | Build established: Scavenger-Gladiator 7009 | -6/Factory | Entered Lower Caves 7011 | -6/Lower Caves | UFD Scientist delivered a prototype 7013 | -6/Lower Caves | Found Prototype Protection 7013 | -6/Lower Caves | Identified Enh. Scrap Shield 7015 | -6/Lower Caves | Identified Hvy. Reactive Plating 7325 | -6/Lower Caves | Build established: Gladiator 7369 | -6/Lower Caves | Attracted the attention of an 0b10 checkpoint 7601 | -6/Lower Caves | Learned location of Extension (-4) 7601 | -6/Lower Caves | Discovered new exit (range 8) 7609 | -6/Lower Caves | Identified exit to Lower Caves 7772 | -6/Lower Caves | Entered another Lower Caves area 8088 | -6/Lower Caves | Discovered exit to Factory (range 25) 8164 | -6/Lower Caves | Build established: Scavenger-Gladiator 8698 | -6/Lower Caves | Build established: Gladiator 8841 | -6/Lower Caves | Discovered new exit (range 12) 8853 | -6/Lower Caves | Identified exit to Data Miner 8856 | -6/Lower Caves | Entered Data Miner 8856 | -6/Data Miner | Discovered new exit (range 6) 8880 | -6/Data Miner | Met Data Miner 8920 | -6/Data Miner | Received God Mode back door access code from Data Miner 8946 | -6/Data Miner | Identified exit to Proximity Caves 8947 | -6/Data Miner | Entered Proximity Caves 9306 | -5/Proximity Caves | Attracted the attention of an 0b10 checkpoint 9389 | -5/Proximity Caves | Learned 4 Factory zone layouts 9549 | -5/Proximity Caves | Discovered exit to Factory (range 14) 9609 | -5/Proximity Caves | Activated DRS Beacon 9736 | -5/Proximity Caves | Found Prototype Launcher 9736 | -5/Proximity Caves | Identified Gui. EMP Blaster 9751 | -5/Proximity Caves | Found Prototype Launcher 9751 | -5/Proximity Caves | Identified Rocket Array 9771 | -5/Proximity Caves | Found Gui. EMP Blaster 9871 | -5/Proximity Caves | Entered Factory 9871 | -5/Factory | Accompanied by 2 allies 9871 | -5/Factory | Evolved 2 slots: Utility x2 10111 | -5/Factory | Identified exit to Factory 10276 | -5/Factory | Build established: Hacker-Gladiator 10325 | -5/Factory | Incoming investigation squad redirected 10342 | -5/Factory | Loaded intel: 8 recycling unit locations 10365 | -5/Factory | Incoming investigation squad redirected 10565 | -5/Factory | Destroyed 8 combat bots 10571 | -5/Factory | Lost 5 parts (2n2u1w) 10726 | -5/Factory | Incoming investigation squad redirected 11086 | -5/Factory | Build established: Hacker-Mutant 11318 | -5/Factory | Garrison activated, responded to threat 11373 | -5/Factory | Entered another Factory area 11373 | -4/Factory | Evolved 2 slots: Utility x2 11599 | -4/Factory | Fabricated H-77 Assassin? 11772 | -4/Factory | Loaded intel: 8 recycling unit locations 11928 | -4/Factory | Identified exit to Upper Caves 11928 | -4/Factory | Identified exit to Extension 11928 | -4/Factory | Identified exit to Research 12270 | -4/Factory | Entered Extension 12432 | -4/Extension | Rescued a captive Derelict 12435 | -4/Extension | Rescued a captive Derelict 12445 | -4/Extension | Rescued a captive Derelict 12611 | -4/Extension | Loaded intel: 1 recycling unit location 12644 | -4/Extension | Spotted B-86 Titan 12694 | -4/Extension | Destroyed B-86 Titan 12714 | -4/Extension | Lost 4 allies 12722 | -4/Extension | Spotted B-86 Titan 12763 | -4/Extension | Destroyed B-86 Titan 12923 | -4/Extension | Rescued a captive Derelict 12923 | -4/Extension | Rescued a captive Derelict 12942 | -4/Extension | Rescued a captive Derelict 12943 | -4/Extension | Rescued a captive Derelict 12954 | -4/Extension | Rescued a captive Derelict 12954 | -4/Extension | Rescued a captive Derelict 12969 | -4/Extension | Rescued A7 12996 | -4/Extension | Rescued a captive Derelict 13001 | -4/Extension | Rescued a captive Derelict 13007 | -4/Extension | Rescued a captive Derelict 13072 | -4/Extension | Rescued a captive Derelict 13085 | -4/Extension | Rescued a captive Derelict 13132 | -4/Extension | Incoming investigation squad redirected 13153 | -4/Extension | Rescued a captive Derelict 13154 | -4/Extension | Rescued a captive Derelict 13172 | -4/Extension | Rescued a captive Derelict 13214 | -4/Extension | Discovered exit to Research (range 10) 13216 | -4/Extension | Discovered new exit (range 6) 13222 | -4/Extension | Identified exit to Cetus 13284 | -4/Extension | Entered Cetus 13284 | -4/Cetus | Accompanied by 15 allies (A7) 13289 | -4/Cetus | Acquired a Cetus Manufacturing Module code from A7 13306 | -4/Cetus | Spotted Cetus Guard 13306 | -4/Cetus | Spotted Cetus Guard 13306 | -4/Cetus | Allies destroyed Cetus Guard 13307 | -4/Cetus | Spotted Cetus Guard 13310 | -4/Cetus | Allies destroyed Cetus Guard 13311 | -4/Cetus | Destroyed Cetus Guard 13391 | -4/Cetus | Started Cetus Manufacturing Module 13416 | -4/Cetus | Manufactured an Enhanced Grunt 13441 | -4/Cetus | Manufactured an Enhanced Grunt 13466 | -4/Cetus | Manufactured an Enhanced Grunt 13491 | -4/Cetus | Manufactured an Enhanced Grunt 13516 | -4/Cetus | Manufactured an Enhanced Grunt 13546 | -4/Cetus | Discovered new exit (range 16) 13591 | -4/Cetus | Spotted Cetus Guard 13591 | -4/Cetus | Spotted Cetus Guard 13592 | -4/Cetus | Spotted Cetus Guard 13596 | -4/Cetus | Allies destroyed Cetus Guard 13599 | -4/Cetus | Allies destroyed Cetus Guard 13600 | -4/Cetus | Allies destroyed Cetus Guard 13600 | -4/Cetus | Spotted Cetus Guard 13610 | -4/Cetus | Allies destroyed Cetus Guard 13618 | -4/Cetus | Discovered exit to Research (range 15) 13624 | -4/Cetus | Met Revision 17 13683 | -4/Cetus | Identified exit to Archives 13753 | -4/Cetus | Entered Archives 13753 | -4/Archives | Accompanied by 19 allies (A7) 13801 | -4/Archives | Discovered new exit (range 15) 13813 | -4/Archives | Discovered new exit (range 15) 13828 | -4/Archives | Identified exit to Hub_04(d) 13880 | -4/Archives | Entered Hub_04(d) 13880 | -4/Hub_04(d) | Accompanied by 17 allies 14138 | -4/Hub_04(d) | Found Prototype Hackware 14138 | -4/Hub_04(d) | Identified Exp. Hacking Suite 14308 | -4/Hub_04(d) | Discovered exit to Research (range 16) 14333 | -4/Hub_04(d) | Network Hub disabled 14347 | -4/Hub_04(d) | Spotted Lightning 14347 | -4/Hub_04(d) | Spotted Lightning 14379 | -4/Hub_04(d) | Allies destroyed Lightning 14384 | -4/Hub_04(d) | Destroyed Lightning 14397 | -4/Hub_04(d) | Found Exp. Targeting Computer 14403 | -4/Hub_04(d) | Lost 5 allies 14438 | -4/Hub_04(d) | System corruption reached 10% 14444 | -4/Hub_04(d) | Entered Research 14444 | -3/Research | Accompanied by 5 allies 14444 | -3/Research | Evolved 2 slots: Propulsion x1, Utility x1 14493 | -3/Research | Found Prototype Processor 14493 | -3/Research | Identified Spectral Analyzer 14584 | -3/Research | Discovered new exit (range 4) 14588 | -3/Research | Identified exit to Armory 14644 | -3/Research | Revision forces began assault on 0b10 14813 | -3/Research | Met up with Revision 17++ 15006 | -3/Research | Identified exit to Quarantine 15085 | -3/Research | Fabricated M-36 Artificer? 15142 | -3/Research | Repaired Adv. Transmission Jammer 15144 | -3/Research | Research terminal network offline 15374 | -3/Research | Discovered new exit (range 12) 15386 | -3/Research | Identified exit to Research 15446 | -3/Research | Spotted Striker 15483 | -3/Research | Spotted Striker 15520 | -3/Research | Destroyed Striker 15531 | -3/Research | Lost 7 allies 15584 | -3/Research | Lost 7 parts (1p1n5u) 15805 | -3/Research | Build established: Scavenger-Mutant 15808 | -3/Research | Discovered exit to Research (range 11) 15900 | -3/Research | Spotted Striker 15902 | -3/Research | Spotted Striker 15918 | -3/Research | Destroyed Striker 15927 | -3/Research | Destroyed Striker 16044 | -3/Research | Found Prototype Processor 16044 | -3/Research | Identified Exp. Core Analyzer 16052 | -3/Research | Found Exp. Core Analyzer 16082 | -3/Research | Entered Quarantine 16243 | -3/Quarantine | Build established: Scavenger-Gladiator 16490 | -3/Quarantine | Found Alien Artifact 16490 | -3/Quarantine | Identified Subatomic Replicator 16756 | -3/Quarantine | Scanned by Researcher 17151 | -3/Quarantine | Cryocooling Duct disabled 17166 | -3/Quarantine | Ambient heat levels rising (+20) 17166 | -3/Quarantine | Non-combat units ordered to evacuate 17327 | -3/Quarantine | Found Alien Energy Cannon 17838 | -3/Quarantine | Found Prototype Launcher 17838 | -3/Quarantine | Identified Ragnarok Missile Launcher 18054 | -3/Quarantine | Entered Research 18054 | -2/Research | Evolved 2 slots: Utility x2 18096 | -2/Research | Loaded intel: 5 recycling unit locations 18124 | -2/Research | Incoming investigation squad redirected 18161 | -2/Research | Spotted B-90 Cyclops 18572 | -2/Research | Spotted B-90 Cyclops 18596 | -2/Research | Destroyed B-90 Cyclops 18623 | -2/Research | Found Quantum Capacitor 18637 | -2/Research | Lost 4 parts (2n1u1w) 18875 | -2/Research | Repaired Kinetic Spear 18944 | -2/Research | Repaired Enh. Force Lance 19177 | -2/Research | Identified exit to Testing 19396 | -2/Research | Build established: Scavenger-Mutant 19443 | -2/Research | Entered Testing 19455 | -2/Testing | Protovariant out of control (PY-FJTNOB9P26) 19455 | -2/Testing | Unleashed a protovariant (PY-FJTNOB9P26) 19455 | -2/Testing | Watched by a mysterious "MATRIX" hacker. 19638 | -2/Testing | Found Prototype Energy Cannon 19638 | -2/Testing | Identified Null Cannon 19650 | -2/Testing | Used Subatomic Replicator to replicate Null Cannon 19742 | -2/Testing | Found Prototype Energy Gun 19742 | -2/Testing | Identified Warp Gun 19905 | -2/Testing | Discovered new exit (range 15) 20063 | -2/Testing | Found Prototype Processor 20063 | -2/Testing | Identified Exp. Armor Integrity Analyzer 20086 | -2/Testing | Found Prototype Device 20086 | -2/Testing | Identified Exp. Thermal Shield 20109 | -2/Testing | Identified Core Cannon 20134 | -2/Testing | Spotted Investigator 20150 | -2/Testing | Destroyed Investigator 20184 | -2/Testing | Spotted Fortress 20251 | -2/Testing | Destroyed Fortress 20256 | -2/Testing | Found Prototype Protection 20256 | -2/Testing | Identified Centrium Heavy Armor Plating 20272 | -2/Testing | Found Prototype Device 20272 | -2/Testing | Identified Exp. Force Field 20319 | -2/Testing | Build established: Scavenger-Gladiator 20387 | -2/Testing | Discovered new exit (range 6) 20387 | -2/Testing | Discovered new exit (range 6) 20395 | -2/Testing | Entered Protoforge 21002 | -2/Protoforge | Superfortress began startup sequence 21133 | -2/Protoforge | Found Prototype Slashing Weapon 21133 | -2/Protoforge | Identified Exp. Terror Saw 21143 | -2/Protoforge | Found Exp. Terror Saw 21175 | -2/Protoforge | Additional patrols dispatched to research labs 21213 | -2/Protoforge | Crushed by falling debris 21219 | -2/Protoforge | Crushed by falling debris 21220 | -2/Protoforge | System corruption reached 10% 21226 | -2/Protoforge | Spotted Immortal 21232 | -2/Protoforge | Spotted Immortal 21250 | -2/Protoforge | Lost 3 parts (1n2u) 21261 | -2/Protoforge | Core integrity fell below 50% 21267 | -2/Protoforge | Destroyed Immortal 21311 | -2/Protoforge | Core integrity fell below 20% 21319 | -2/Protoforge | Destroyed Immortal 21323 | -2/Protoforge | Found Prototype Piercing Weapon 21323 | -2/Protoforge | Identified Exp. Jetlance 21347 | -2/Protoforge | Lost 6 parts (1p1n2u2w) 21364 | -2/Protoforge | Spotted V500-m 21364 | -2/Protoforge | Spotted V668-k 21385 | -2/Protoforge | Found Prototype Launcher 21385 | -2/Protoforge | Identified Cep. Arcsight Missile Launcher 21392 | -2/Protoforge | Found Prototype Launcher 21392 | -2/Protoforge | Identified Cep. Rapid Grenade Launcher 21395 | -2/Protoforge | Found Prototype Launcher 21395 | -2/Protoforge | Identified Cep. EMP Blanket Launcher 21490 | -2/Protoforge | Spotted Decapitator 21490 | -2/Protoforge | Spotted Decapitator 21490 | -2/Protoforge | Spotted Decapitator 21492 | -2/Protoforge | Destroyed Decapitator 21492 | -2/Protoforge | Destroyed Decapitator 21492 | -2/Protoforge | Destroyed Decapitator 21528 | -2/Protoforge | Found Prototype Device 21528 | -2/Protoforge | Identified Exp. Active Sensor Suite 21535 | -2/Protoforge | Found Exp. Active Sensor Suite 21551 | -2/Protoforge | Build established: Scavenger-Mutant 21588 | -2/Protoforge | Spotted Hotshot 21588 | -2/Protoforge | Spotted Hotshot 21609 | -2/Protoforge | Destroyed Hotshot 21613 | -2/Protoforge | Destroyed Hotshot 21665 | -2/Protoforge | Spotted V390-t 21665 | -2/Protoforge | Spotted V290-e 21675 | -2/Protoforge | Spotted Immortal 21675 | -2/Protoforge | Spotted Immortal 21691 | -2/Protoforge | Destroyed V390-t 21707 | -2/Protoforge | Destroyed Immortal 21717 | -2/Protoforge | Destroyed Immortal 21720 | -2/Protoforge | Destroyed V290-e 21721 | -2/Protoforge | Spotted V811-w 21725 | -2/Protoforge | Destroyed by V811-w with Enhanced Quantum Rifle Last Messages --------------- 21709_ C-65 Expert is analyzing... 21711_ Critical hit (Impale). 21711_ Cep. Arcsight Missile Launcher destroyed. 21713_ Held in stasis. 21713_ C-65 Expert is analyzing... 21714_ Adv. Transmission Jammer destroyed. 21715_ Closed Research Cell breached. 21717_ Immortal destroyed. 21717_ Held in stasis. 21717_ C-65 Expert is analyzing... 21720_ V290-e suddenly sparks and explodes in a catastrophic instability. 21720_ V290-e destroyed. 21720_ ALERT: Potential suspicious activity detected, Programmers report to Protoforge Zone 8B. 21721_ Held in stasis. 21723_ System corrupted: Component data lost. 21725_ Held in stasis. 21725_ C-65 Expert is analyzing... Map ----- +----------------------------------------------------+ | ?????????????????????????????????????????????????? | | ?????????????????????????????????????????????????? | | ?????????????????????????????????????????????????? | | ?????????????????????????????????????????????????? | | ?????????????????????????????????????????????????? | | ?????????????????????????????????????????????????? | | ?????????????????????????????????????????????????? | | ?????????????????????????????????????????????????? | | ?????????????????????????????????????????????????? | | ?????????????????????????????????????????????????? | | ?????????????????????????????????????????????????? | | ?????????????????????????????????????????????????? | | ?????????????????????????????????????????????????? | | ?????????????????????????????????????????????????? | | #####????????????????????????????????????????????? | | #???????????????????????????????????????????? | | ? ??????????????????????#????????????????????? | | ? ????????????????????? #????????????????????? | | ?# #????????????????????? #????????????????????? | | ?# #?????????????????????!##?###???????????????? | | ?# #???????????????????#"V;## ###?????????????? | | ?# #???????????????????" #?????????????? | | ?# #?????????????????#"" "#?????????????? | | ?# ################### "#?????????????? | | ?# % """"#?????????????? | | ?# @% """#?????????????? | | ?# #########++######;# ""#?????????????? | | ?# #??????" ???# c "#?????????????? | | ?# #?????#" " """""""##?????????????? | | ?# #?????#" " " " "!! !! "#?????????????? | | ?# ^#?????#"""""""# " "!!!! "#?????????????? | | ?# #?????######### #####"""""""#?????????????? | | ?# #?????????????#####????########?????????????? | | ?# #???????????????????????????????????????????? | | ?# #???????????????????????????????????????????? | | ?# #???????????????????????????????????????????? | | ?# #???????????????????????????????????????????? | | ?# #???????????????????????????????????????????? | | ?# #????????????????##############?????????????? | | ?# #????????????????# ## ! #?????????????? | | ?# #????????????????# ## #?????????????? | | ?# #????????????????###" "## ""###?????????????? | | ?# #????????????????# "#?????????????? | | ?# #????????????????# ""#?????????????? | | ?# [################## """"#?????????????? | | ?# [ """"#?????????????? | | ?# ^ ""#?????????????? | | ?# ^ ########### # "#?????????????? | | ?# #?????????# # "#?????????????? | | ?# #?????????#########""""""""""##?????????????? | +----------------------------------------------------+ Best States ------------- Heat Dissipation 118 Coolant Potential 100 Energy Generation 45 Energy Capacity 565 Matter Stores 300 Matter Capacity 300 Sight Range 23 Robot Scan Range 20 Terrain Scan Density 10 Jamming Range 16 Corruption Containment 12 Armor Coverage 900 Resistance: KI 40 Resistance: TH 30 Core Shielding 30 Power Shielding 90 Propulsion Shielding 66 Weapon Shielding 66 Melee Speed Boost 30 Evasion (%) 70 Melee Accuracy 8 Target Analysis 8 Core Analysis 8 Armor Integrity Analysis 50 Recoil Reduction 2 Particle Charging 25 Offensive Hacking 42 Defensive Hacking 12 Item Schematics ----------------- Combat Drone Bay | -6/Data Miner | Free Lgt. Regenerative Plating | -6/Data Miner | Free Enh. Armored Leg | -6/Data Miner | Free Prc. Energy Filter | -6/Data Miner | Free Plasma Sword | -6/Data Miner | Free Imp. Linear Gravjet | -6/Data Miner | Free Imp. Force Field | -6/Data Miner | Free Hvy. Disruptor Cannon | -6/Data Miner | Free Fusion Bomb Launcher | -6/Data Miner | Free Antigrav Array | -6/Data Miner | Free Imp. Energy Well | -3/Quarantine | Archive Graviton Reactor | -3/Quarantine | Archive Adv. Gravity Neutralizer | -3/Quarantine | Archive Adv. Micro-nuke Launcher | -2/Testing | Archive Exp. Targeting Computer | -2/Testing | Archive Enh. Coil Gun | -2/Testing | Archive Adv. Quantum Shading Machine | -2/Testing | Archive Hellfire Missile Launcher | -2/Testing | Archive Coolant Network | -2/Testing | Archive Robot Schematics ------------------ I-47 Archangel | -6/Data Miner | Free P-70 Sage | -6/Data Miner | Free A-15 Conveyor | -6/Data Miner | Free B-48 Gladiator | -6/Data Miner | Free L-61 Swordsman | -6/Data Miner | Free R-10 Processor | -3/Quarantine | Archive Fabricated ------------ H-77 Assassin | x2 | -4/Factory | Preloaded M-36 Artificer | x1 | -3/Research | Preloaded Repaired ---------- Adv. Transmission Jammer | 30% | -3/Research Kinetic Spear | 5% | -2/Research Enh. Force Lance | 28% | -2/Research Studied --------- None Alien Tech Used ----------------- Subatomic Replicator Core Cannon Achievements -------------- Better Safe Than Exploded Definitely A Prototype Fixer-Upper Challenges ------------ None Game ------ Seed BraceRingDoublenader Manual? 0 Play Time 03:06:58 Cumulative 607.5 hours Start 2026.04.28 @ 11:11:49 End 2026.04.28 @ 15:58:34 Sessions 1 Manual Loads 0 Difficulty Rogue Special Mode None Game No. 933 Rogue 778 Adventurer 148 Explorer 7 Win Type - Total 29 Types 21/1/4/1/0/0/1/0/0/1 Lore% 82 Gallery% 82 Achievement% 76 Wizard Run 0 Options --------- Layout 1 ASCII 0 Keyboard 0 Movement Numpad Keybinds 0 Fullscreen 2 Font 24/Smallcaps Map View 50x35 Zoom Use 0% Tactical HUD 1 Map Filters NONE Filters NONE Steam 1 RUN: 0b8a176a-805f-43ea-bfb1-6586205f7bad